Cogmind - Beta 10.1 @@@ ROGUE MODE // 2021.04.25 @ 01:56:59 Player: Farfid Result: Destroyed by G-34 Mercenary with Small Laser Performance ------------- Evolutions (0) 0 Regions Visited (2) 400 Robots Destroyed (26) 130 Value Destroyed (444) 444 Prototype IDs (0) 0 Alien Tech Used (0) 0 Bonus (0) 0 TOTAL SCORE: 974 Bonus ------- None Cogmind --------- Core Integrity 0/250 Matter 300/300 Energy 100/100 System Corruption 0% Temperature Cool (6) Movement Core (150) Ox2 Location -10/Mines Parts ------- > --- POWER (1) -------- (None) > --- PROPULSION (2) --- (None) > --- UTILITY (2) ------ Medium Storage Unit > --- WEAPON (2) ------- (None) > --- INVENTORY (8) ---- Wheel Wheel Improved Heat Sink High-capacity Matter Pod (200) Utility Shielding Recalibrator Small Laser Peak State ------------ > --- POWER ------------ Light Nuclear Core > --- PROPULSION ------- Wheel Compact Wheel > --- UTILITY ---------- Medium Storage Unit Improved Terrain Scanner > --- WEAPON ----------- Assault Rifle Light Assault Rifle > --- INVENTORY -------- Wheel Improved Heat Sink High-capacity Matter Pod Utility Shielding Recalibrator Particle Gun Hammer [Rating: 11] Favorites ----------- Power Ion Engine Engine Ion Engine Power Core Light Nuclear Core Propulsion Compact Wheel Wheel Compact Wheel Utility Medium Storage Unit Device Improved Terrain Scanner Storage Medium Storage Unit Processor Visual Processing Unit Protection Light Armor Plating Weapon Light Assault Rifle Energy Gun Medium Laser Ballistic Gun Light Assault Rifle Impact Weapon Hammer Build | -11 -10 -10 ------- Run | Scr Mat Min Slots Evolved . | . . . Power . | . . . Propulsion . | . . . Utility . | . . . Weapon . | . . . Parts Attached 21 | 6 8 7 Power 3 | 1 1 1 Engine 2 | 1 . 1 Core 1 | . 1 . Reactor . | . . . Propulsion 5 | 2 1 2 Treads . | . . . Leg . | . . . Wheel 5 | 2 1 2 Hover . | . . . Flight . | . . . Utility 5 | 1 4 . Device 1 | . 1 . Storage 2 | 1 1 . Processor 1 | . 1 . Hackware . | . . . Protection 1 | . 1 . Artifact . | . . . Weapon 8 | 2 2 4 Energy Gun 1 | 1 . . Energy Cannon . | . . . Ballistic Gun 5 | 1 2 2 Ballistic Cannon . | . . . Launcher . | . . . Special Weapon . | . . . Impact Weapon 2 | . . 2 Slashing Weapon . | . . . Piercing Weapon . | . . . Special Melee Weapon . | . . . Unidentified Prototypes . | . . . Parts Lost 15 | . 5 10 Power 3 | . 1 2 Propulsion 5 | . 2 3 Utility 2 | . 1 1 Weapon 5 | . 1 4 Highest Loss Streak 6 | . 2 6 Average Slot Usage (%) 85 | . 91 77 Engine 9 | . 13 4 Core 1 | . . 2 Wheel 22 | . 27 18 Device 6 | . . 13 Storage 14 | . 14 14 Protection 3 | . 5 . Ballistic Gun 23 | . 25 21 Impact Weapon 1 | . . 3 Naked Turns . | . . . Heaviest Build 19 | 13 19 16 Greatest Support 32 | 32 32 20 Greatest Overweight (x) 2 | 1 1 2 Average Overweight (x) . | . . . Largest Inventory Capacity 8 | 6 8 8 Average Capacity 7 | 5 6 8 Most Carried 8 | 5 8 8 Average Carried 5 | 1 4 6 Final Capacity 8 | 6 8 8 Final Carried 7 | . 7 7 Class Distribution -------------------- 57% | Mutant 42% | Scavenger-Mutant Dominant Class ---------------- Mutant | -10/Materials Scavenger-Mutant | -10/Mines Resources | -11 -10 -10 ----------- Run | Scr Mat Min Matter Collected 822 | 196 394 232 Remotely . | . . . Salvage Created 743 | . 465 278 Parts 60 | . 43 17 Haulers Intercepted 1 | . 1 . Recyclers Shooed 3 | . 1 2 Parts Field Recycled . | . . . Retrieved Matter . | . . . Parts Self-Destructed . | . . . Prevented . | . . . Kills | -11 -10 -10 ------- Run | Scr Mat Min Combat Hostiles Destroyed 14 | . 7 7 Melee 1 | . . 1 Guns 12 | . 7 5 Classes Destroyed 8 | . 8 . Worker 4 | . 3 1 Builder 1 | . 1 . Tunneler 2 | . 1 1 Hauler 1 | . 1 . Mechanic 1 | . 1 . Watcher 3 | . 3 . Swarmer 6 | . 3 3 Grunt 8 | . 4 4 Best Kill Streak 5 | . 5 3 Combat Bots Only 3 | . 3 3 Max Kills in Single Turn 1 | . 1 1 Gunslinging . | . . . Exploded . | . . . Melee 1 | . . 1 Uniques/NPCs Destroyed . | . . . Combat | -11 -10 -10 -------- Run | Scr Mat Min Damage Taken 1217 | . 497 720 Core 254 | . 47 207 Absorbed by Shields . | . . . Core Remaining (%) 100 | 100 . . Volleys Fired 86 | . 50 36 Largest 2 | . 2 2 Hottest 70 | . 70 40 Shots Fired 167 | . 100 67 Gun 167 | . 100 67 Cannon . | . . . Launcher . | . . . Special . | . . . Kinetic 160 | . 93 67 Thermal 7 | . 7 . Explosive . | . . . Electromagnetic . | . . . Robot Hit Streak 10 | . 10 7 Robot Miss Streak 3 | . 2 3 Penetration Max . | . . . Secondary Targets 5 | . 3 2 Max Gunslinging Chain 1 | . 1 1 Shots Hit Robots 130 | . 70 60 Core Hits 52 | . 33 19 Critical Hits . | . . . Critical Kills . | . . . Critical Parts Destroyed . | . . . Melee Attacks 21 | . . 21 Impact 21 | . . 21 Slashing . | . . . Piercing . | . . . Sneak Attacks . | . . . Combat Hostiles . | . . . Follow-up Attacks . | . . . Damage Inflicted 1436 | . 810 626 Guns 1158 | . 810 348 Cannons . | . . . Explosions . | . . . Melee 278 | . . 278 Ramming . | . . . Kinetic 1096 | . 748 348 Thermal 62 | . 62 . Explosive . | . . . Electromagnetic . | . . . Impact 278 | . . 278 Slashing . | . . . Piercing . | . . . Highest Corruption . | . . . Average Corruption . | . . . Corruption Purged . | . . . Overload Shots . | . . . Overflow Damage 17 | . . 17 Projectiles . | . . . Explosions . | . . . Melee 17 | . . 17 Knockbacks 1 | . . 1 Impact 1 | . . 1 Kinetic . | . . . Secondary . | . . . Self-Inflicted Damage . | . . . Shots . | . . . Rammed . | . . . Targets Rammed . | . . . Kicked . | . . . Crushed . | . . . Highest Temperature 45 | . 45 39 Average Temperature 12 | . 12 9 Received Heat Transfer 594 | . 243 351 Siege Activations . | . . . Robots Corrupted . | . . . Combat Hostiles . | . . . Parts Fried 1 | . . 1 Impact Corruptions 2 | . . 2 Robots Melted . | . . . Combat Hostiles . | . . . Parts Melted . | . . . Heat Transferred 185 | . 185 . Parts Sabotaged . | . . . Parts Stolen . | . . . Parts Stripped . | . . . Power Chain Reactions . | . . . Missiles Intercepted . | . . . Alert | -11 -10 -10 ------- Run | Scr Mat Min Peak Influence 266 | . 266 222 Initial 92 | . . 92 Average 162 | . 159 185 Maximum Alert Level 1 | . 1 1 Low Security (%) 68 | 100 68 65 Level 1 31 | . 31 34 Level 2 . | . . . Level 3 . | . . . Level 4 . | . . . Level 5 . | . . . High Security . | . . . Max Security . | . . . Squads Dispatched 2 | . 2 . Investigation 1 | . 1 . Extermination . | . . . Reinforcement 1 | . 1 . Assault . | . . . Garrison . | . . . Intercept . | . . . Construction Impeded . | . . . Haulers Reinforced . | . . . Stealth | -11 -10 -10 --------- Run | Scr Mat Min Distress Signals 2 | . 2 . Communications Jammed . | . . . Distress Signals . | . . . Times Spotted 26 | . 18 8 Peak Tracking Total 5 | . 5 2 Tactical Retreats 3 | . 3 . Traps | -11 -10 -10 ------- Run | Scr Mat Min Traps Triggered 1 | . 1 . Indirectly . | . . . Trap Hack Attempts . | . . . Triggered . | . . . Disarmed . | . . . Reprogrammed . | . . . Reused . | . . . Traps Extracted . | . . . Installed . | . . . Triggered . | . . . Machines | -11 -10 -10 ---------- Run | Scr Mat Min Machines Disabled . | . . . Max in Single Turn . | . . . Machines Sabotaged . | . . . Garrisons Compromised . | . . . Overloaded Fab Kills . | . . . Fab Network Shutdowns . | . . . Hacking | -11 -10 -10 --------- Run | Scr Mat Min Machines Accessed 1 | . 1 . Terminals 1 | . 1 . Fabricators . | . . . Repair Stations . | . . . Recycling Units . | . . . Scanalyzers . | . . . Garrison Access . | . . . Total Hacks 3 | . 3 . Successful . | . . . Failed 3 | . 3 . Catastrophic 1 | . 1 . Database Lockouts . | . . . Manual . | . . . Terminals 3 | . 3 . Fabricators . | . . . Repair Stations . | . . . Recycling Units . | . . . Scanalyzers . | . . . Garrison Access . | . . . Terminal Hacks . | . . . Fabricator Hacks . | . . . Repair Station Hacks . | . . . Recycling Unit Hacks . | . . . Scanalyzer . | . . . Garrison Access Hacks . | . . . Unauthorized Hacks . | . . . Terminals . | . . . Fabricators . | . . . Repair Stations . | . . . Recycling Units . | . . . Scanalyzers . | . . . Garrison Access . | . . . Data Cores Recovered . | . . . Used . | . . . Hacking Detections 1 | . 1 . Full Trace Events . | . . . Feedback Events . | . . . Feedback Blocked . | . . . Robot Schematics Acquired . | . . . Robots Built . | . . . Matter . | . . . Time . | . . . Total Robot Build Rating . | . . . Part Schematics Acquired . | . . . Parts Built . | . . . Matter . | . . . Time . | . . . Total Part Build Rating . | . . . Parts Repaired . | . . . Time . | . . . Parts Recycled . | . . . Recycled Matter . | . . . Retrieved Matter . | . . . Retrieved Components . | . . . Parts Scanalyzed . | . . . Part Schematics Acquired . | . . . Parts Damaged . | . . . Bothacking | -11 -10 -10 ------------ Run | Scr Mat Min Used RIF Installer . | . . . Robots Hacked . | . . . Non-combat . | . . . Combat . | . . . Robot Hacks Applied . | . . . Relay Couplers Released . | . . . Robots Rewired . | . . . Allies Hacked . | . . . Hacks Repelled . | . . . Allies | -11 -10 -10 -------- Run | Scr Mat Min Total Allies . | . . . Largest Group . | . . . Highest-Rated Group . | . . . Highest-Rated Ally . | . . . Total Orders . | . . . Ally Attacks . | . . . Total Damage . | . . . Kills . | . . . Allies Corrupted . | . . . Allies Melted . | . . . Intel | -11 -10 -10 ------- Run | Scr Mat Min Robot Analysis Total . | . . . Derelict Logs Recovered 2 | . . 2 Drone Launches . | . . . Drone Recoveries . | . . . Exploration | -11 -10 -10 ------------- Run | Scr Mat Min Turns Passed 788 | 45 389 354 Spaces Moved 463 | 40 216 207 Core 27 | 20 . 7 Treads . | . . . Legs . | . . . Wheels 436 | 20 216 200 Hover . | . . . Flight . | . . . Fastest Speed 50 | 50 90 80 Average Speed 92 | 85 98 88 Slowest Speed 150 | 100 100 150 Overloaded Moves . | . . . Propulsion Burnouts . | . . . Robots Hopped . | . . . Cave-ins Triggered . | . . . Exploration Rate (%) 27 | 3 35 43 Regions Visited 2 Branch Regions 1 Pre-discovered Areas . | . . . Known Exits Taken . | . . . Unknown Exits Taken 2 | 1 1 . Scrap Searched . | . . . Spaces Dug . | . . . Terrain Destroyed . | . . . Melee . | . . . Projectile . | . . . AOE . | . . . Terrain Rammed . | . . . Walls Destroyed . | . . . Machines Disabled . | . . . Actions | -11 -10 -10 --------- Run | Scr Mat Min Total 644 | 50 302 292 Wait 23 | . 9 14 Move 461 | 39 215 207 Hop . | . . . Pick Up 27 | 5 16 6 Fast Attach 1 | 1 . . Attach 17 | 5 7 5 Detach . | . . . Swap 3 | . 1 2 Drop 5 | . 4 1 Fire 86 | . 50 36 Melee 21 | . . 21 Ram . | . . . Kick . | . . . Crush . | . . . Escape Stasis . | . . . Rewire . | . . . Trap . | . . . Miscellaneous . | . . . Route ------- -11/Scrapyard -10/Materials (discovered 2 exits: [*Mat] / [*Min]) -10/Mines History --------- Turn | Location | Event 7 | -11/Scrapyard | Discovered new exit (range 16) 46 | -11/Scrapyard | Entered Materials 304 | -10/Materials | Discovered new exit (range 9) 310 | -10/Materials | Build established: Mutant 315 | -10/Materials | Discovered new exit (range 16) 435 | -10/Materials | Entered Mines 472 | -10/Mines | Lost 3 parts (1p1n1w) 489 | -10/Mines | Learned Materials interactive machine intel 672 | -10/Mines | Learned Materials emergency access door positions 680 | -10/Mines | Excavation squad dispatched 680 | -10/Mines | A large section of the Mines collapsed 722 | -10/Mines | Build established: Scavenger-Mutant 741 | -10/Mines | Core integrity fell below 50% 742 | -10/Mines | Found a hidden stash of uninstalled traps 780 | -10/Mines | Core integrity fell below 20% 789 | -10/Mines | Destroyed by G-34 Mercenary with Small Laser Last Messages --------------- 00764_ Wheel destroyed. 00765_ U-05 Engineer lays Concrete. 00766_ G-34 Mercenary knocked back. 00767_ T-07 Excavator is excavating. 00768_ U-05 Engineer lays Concrete. 00768_ Imp. Terrain Scanner destroyed. 00769_ T-07 Excavator is excavating. 00775_ Hammer destroyed. 00777_ G-34 Mercenary IFF system glitched. 00777_ T-07 Excavator destroyed. 00777_ Wheel destroyed. 00779_ U-05 Engineer lays Concrete. 00781_ T-07 Excavator is excavating. 00781_ G-34 Mercenary misfires. 00783_ G-34 Mercenary IFF system glitched. 00783_ T-07 Excavator destroyed. 00783_ U-05 Engineer lays Concrete. 00783_ Acquired Wheel. 00784_ U-05 Engineer lays Concrete. 00789_ Acquired Sml. Laser. Map ----- +----------------------------------------------------+ | ?????????????????????????????????????????????????? | | ?????????????????????????????????????????? ????#?? | | ?????????????????????????????????????????????????? | | ?????????????????????????????????????????????????? | | ??????????????????????????????????????#??????????? | | ?????????????????????????? ??????????????????????? | | ?????????????????????????? #?????????????????????? | | ?????????????????????????? #?????????????????????? | | ?????????????????????????? #??????????#??????????? | | ???????????????????????#?? #???????????#?????????? | | ?????????????????????????? ####?????????? ? ?????? | | ???????????????????###??#? ##??????????????????# | | ??????????????#???## #?## #????#?????????????? | | ??????????????????# ## ????????????? ?????? | | ???????????????#??# ????????????????????? | | ???????????????#???? ??#??????????#????#### | | ?????????????????????# #??????????######### | | ??????????????"? ???#?# #????????#?# # | | ??????????????"? ?????# #??????###### | | ???????????????????#?##!g #?????## #"# #### | | ??????????????? ????##=% ####### # #??## | | ??????????? ??????## g= #???# | | ??????????????#????# | "###????# | | ?????????????????#?# %=########" ##?????## | | ???????????????????## = ! ##?????####???#???###### | | ???????????????#????##%* @ #???### ###???#??#???# | | ?????????#???????????##= & ###?# ##?#?????##### | | ????????#???????????#?# & &#???# #?????#??# | | ??????????????????????## &##???# ###???#??#?# | | ???????????????????????######### #??????????# ## | | ???????????????#?#???##?????# #?##??????## ## | | ????????????????????#???????# ####????#?#??# ## | | ??????????????????#???#?????# #???##?#??#??# ## | | ??????????????#???????????### ##?####????#?# ###? | | ?????????????????????###### ##### ###?##?# #??? | | ????????????????????## #????# #??? | | ????????????????##### #?????# #??# | | ?????????????#### """" ###?????# #??? | | ????????????## """" ##?????#?# #?? | | ????????????# """" ###????### #??? | | ?????????#??# ####### #??? | | ????????????# ## ### ### #??? | | ?????? ?????# #### # ##?### # ###??? | | ????#???????# ##??## ## #????## ##?#??? | | ????????????## ##???##### #?????## #####?????? | | ?????????????# ?????#???# #??????####?????????? | | ?????????????# ?????#???# #???????????????????? | | ????????????# ?????????# #?????????????????? ? | | ????????????# ?????????# #???????#???????????? | | ????????????# ??????#???# ??? ???????????????? | +----------------------------------------------------+ Best States ------------- Heat Dissipation 25 Energy Generation 14 Energy Capacity 250 Matter Stores 300 Matter Capacity 300 Sight Range 18 Terrain Scan Range 16 Terrain Scan Density 10 Armor Coverage 150 Evasion (%) 50 Item Schematics ----------------- None Robot Schematics ------------------ None Fabricated ------------ Nothing Alien Tech Used ----------------- None Achievements -------------- None Challenges ------------ None Game ------ Seed MakeshiftCooledGun Manual? 0 Play Time 00:10:11 Cumulative 132.0 hours Start 2021.04.25 @ 01:49:42 End 2021.04.25 @ 01:56:59 Sessions 1 Manual Loads 0 Difficulty Rogue Special Mode None Game No. 55 Rogue 55 Adventurer 0 Explorer 0 Win Type - Total 2 Types 2/0/0/0/0/0/0/0/0 Lore% 56 Gallery% 67 Achievement% 52 Wizard Run 0 Options --------- ASCII 0 Keyboard 0 Movement Mouse Keybinds 0 Fullscreen 2 Font 12/Smallcaps Map View 83x54 Tactical HUD 1 Map Filters NONE Filters NONE Steam X RUN: 1bdcf6da-a91e-44e5-9be9-d3937267e272